[Event "5th Vera Menchik Memorial 2022"]
[Site "Prag"]
[Date "2022.06.05"]
[Round "7.7"]
[White "Brejnik, Gustav"]
[Black "Fedorov, Evgueny"]
[Result "1-0"]
[ECO "E18"]
[WhiteElo "2246"]
[BlackElo "2236"]
[Annotator "TA"]
[PlyCount "119"]
[EventDate "2022.06.05"]
[EventType "tourn"]
[EventCountry "CZE"]
[SourceTitle "playchess.com"]
[Source "ChessBase"]
[SourceQuality "1"]
[TimeControl "720+3"]

{[%evp 15,119,0,20,23,23,27,20,27,50,27,26,20,22,25,15,8,3,13,14,2,12,0,19,0,24,0,9,0,0,0,0,0,38,38,32,0,75,71,75,75,75,67,67,67,67,67,67,67,67,67,67,34,67,27,138,41,132,33,60,41,118,4,107,41,41,11,41,41,41,41,41,41,41,17,41,41,41,0,41,41,48,0,0,0,17,10,14,12,12,0,63,45,35,0,8,0,0,0,107,100,254,222,351,341,682,614]} 1. d4 {[%emt 0:00:01]} Nf6 {[%emt 0:00:02]} 2. c4 {[%emt 0:00:01]} e6 {[%emt 0:00:02]} 3. Nf3 {[%emt 0:00:04]} b6 {[%emt 0:00:02]} 4. g3 {[%emt 0:00:07]} Bb7 {[%emt 0:00:02]} 5. Bg2 {[%emt 0:00:02]} Be7 {[%emt 0:00:02]} 6. O-O {[%emt 0:00:03]} O-O {[%emt 0:00:02]} 7. Nc3 {[%emt 0:00:01]} Ne4 {[%emt 0:00:03]} 8. Bd2 $1 {[%emt 0:00:04][%mdl 4] is currently scoring better than 8.Qc2.} f5 {[%emt 0:00:05]} 9. Ne5 {[%emt 0:00:12] E18: Queen's Indian: Old Main Line (4 g3 Bb7 5 Bg2 Be7 6 0-0 0-0 7 Nc3).} Nxc3 {[%emt 0:02:11]} 10. Bxc3 {[%emt 0:00:02]} Bxg2 {[%emt 0:00:02]} 11. Kxg2 {[%emt 0:00:01] The position is equal.} a5 {[%emt 0:00:55] [#]} 12. Qd3 $146 {[%emt 0:00:24]} (12. e4 $5) ({Predecessor:} 12. e3 Qc8 13. Qf3 Ra7 14. Nd3 Qa6 15. b3 Bf6 16. Rac1 a4 17. Rfd1 axb3 18. axb3 {1-0 (28) Fang,Y (2510)-Zhai,M (2337) Danzhou 2016}) 12... d6 {[%emt 0:01:16]} 13. Nf3 {[%emt 0:00:11]} Nd7 {[%emt 0:00:54]} 14. e4 {[%emt 0:00:13]} f4 {[%emt 0:00:16]} 15. Bd2 {[%emt 0:02:15]} fxg3 {[%emt 0:01:20]} 16. hxg3 {[%emt 0:00:06]} Qe8 {[%emt 0:00:54]} 17. Rh1 {[%emt 0:00:38]} Qg6 {[%emt 0:00:36]} 18. Rae1 {[%emt 0:00:41]} Rae8 {[%emt 0:01:32]} 19. Qe2 {[%emt 0:01:01]} Qg4 {[%emt 0:00:44]} 20. Qd3 {[%emt 0:00:32]} Qg6 {[%emt 0:00:12]} 21. Rh3 {[%emt 0:00:08]} e5 {[%emt 0:00:47]} 22. dxe5 {[%emt 0:01:09]} Nxe5 {[%emt 0:00:02]} 23. Qd5+ {[%emt 0:00:29]} Qf7 {[%emt 0:00:09]} (23... Rf7 $5 {[%cal Re5f3]} 24. Nd4 (24. Nxe5 dxe5 25. Be3 c6 $15) 24... Nd3 $11) 24. Nxe5 {[%emt 0:00:04] Chess con chili.} dxe5 {[%emt 0:00:03]} 25. Reh1 {[%emt 0:00:08][%cal Be1h1,Bh1c1,Bc1c6][%mdl 32]} Qxd5 {[%emt 0:00:30]} (25... Rd8 $2 26. Rxh7 $1 (26. Qxf7+ Kxf7 27. Bc3 Bc5 $11) 26... Qxd5 27. cxd5 $18 (27. exd5 Rfe8 $18)) (25... h6 $1 $11 {remains equal.}) 26. cxd5 $16 {[%emt 0:00:16]} h6 {[%emt 0:00:04][%cal Oc7c6]} 27. Be3 {[%emt 0:00:02]} Bd6 {[%emt 0:00:04]} 28. Rc1 {[%emt 0:00:07]} Rf6 {[%emt 0:00:21]} 29. Kf1 {[%emt 0:00:19]} g5 {[%emt 0:00:08]} 30. Ke2 {[%emt 0:00:03]} Kg7 {[%emt 0:00:01]} 31. Rhh1 {[%emt 0:00:16]} Ref8 {[%emt 0:00:01]} 32. Rc6 {[%emt 0:00:13]} R8f7 {[%emt 0:00:03]} 33. Rhc1 {[%emt 0:00:02]} Kg6 {[%emt 0:00:06]} 34. a3 {[%emt 0:00:10]} Rd7 {[%emt 0:00:01]} (34... g4 $11) 35. Kd3 {[%emt 0:00:09]} (35. f4 $1 $16) 35... Rdf7 {[%emt 0:00:01]} (35... h5 $14) 36. Kc4 {[%emt 0:00:02]} (36. f4 $1 $16 {[%cal Rf4e5]}) 36... Rd7 {[%emt 0:00:00]} 37. Kb5 {[%emt 0:00:01]} Rdf7 {[%emt 0:00:02] [#]} (37... h5 $14) 38. Ka6 {[%emt 0:00:05]} (38. f4 $1 $16) 38... h5 {[%emt 0:00:22] [#]} (38... Kh5 $1 $11) 39. Rh1 {[%emt 0:00:15]} (39. f4 $1 $16 {[%cal Rf4f5]}) 39... Rh7 {[%emt 0:00:00]} 40. Kb5 {[%emt 0:00:11]} Rhf7 {[%emt 0:00:00]} 41. Rh2 {[%emt 0:00:06]} Rh7 {[%emt 0:00:00]} 42. Rc1 {[%emt 0:00:02]} Rhf7 {[%emt 0:00:00]} 43. Rch1 {[%emt 0:00:07]} Rh7 {[%emt 0:00:00]} 44. Rh3 {[%emt 0:00:04]} Rff7 {[%emt 0:00:00]} 45. Rc1 {[%emt 0:00:26]} Rf6 {[%emt 0:00:00]} 46. Rc6 {[%emt 0:00:02]} Rhf7 {[%emt 0:00:00]} 47. Rh1 {[%emt 0:00:09]} Rh7 {[%emt 0:00:00]} 48. b4 {[%emt 0:00:05]} (48. Rg1 $14) 48... axb4 $11 {[%emt 0:00:00]} 49. axb4 {[%emt 0:00:01]} Rhf7 {[%emt 0:00:02]} 50. Rc2 {[%emt 0:00:08]} Rh7 {[%emt 0:00:03]} 51. Ra2 {[%emt 0:00:01]} Rf8 {[%emt 0:00:05]} 52. Ra7 {[%emt 0:00:08]} Rb8 {[%emt 0:00:13]} ({Black should try} 52... Bxb4 $11 53. Bxb6 (53. Kxb4 c5+ 54. dxc6 Rxa7 $11) 53... Bd6) 53. Kc6 $1 $14 {[%emt 0:00:08]} Rd8 {[%emt 0:00:03]} 54. Kb5 {[%emt 0:00:14]} Rb8 {[%emt 0:00:01]} 55. Rc1 {[%emt 0:00:08] aiming for Rc6.} Rf8 {[%emt 0:00:14]} 56. Rc6 {[%emt 0:00:05][%cal Of2f4] Hoping for f4!} Rf6 {[%emt 0:00:01] Against f4} (56... h4 $1 $11) 57. Ra8 $16 {[%emt 0:00:02] White is more active.} Rg7 $2 {[%emt 0:00:08] Inhibits Rg8.} (57... h4 $16) 58. Rh8 $18 {[%emt 0:00:02]} Rff7 {[%emt 0:00:05]} (58... Rgf7 $142 59. Rg8+ Rg7 60. Rxg7+ Kxg7) 59. Bxb6 {[%emt 0:00:09]} Rf3 $2 {[%emt 0:00:02] [#]} (59... Rf6 60. Bc5 h4) 60. Bxc7 $1 {[%emt 0:00:11][%mdl 512] Weighted Error Value: White=0.18 (very precise) /Black=0.34} 1-0

[Event "5th Vera Menchik Memorial 2022"]
[Site "Prag"]
[Date "2022.06.05"]
[Round "7.8"]
[White "Vybiral, Zdenek"]
[Black "Zima, Jan"]
[Result "1-0"]
[ECO "D85"]
[WhiteElo "2167"]
[BlackElo "2134"]
[Annotator "TA"]
[PlyCount "55"]
[EventDate "2022.06.05"]
[EventType "tourn"]
[EventCountry "CZE"]
[SourceTitle "playchess.com"]
[Source "ChessBase"]
[SourceQuality "1"]
[TimeControl "720+3"]

{[%evp 9,55,22,36,40,52,6,10,0,77,45,76,84,100,0,0,10,44,12,41,46,61,43,41,53,43,7,6,0,0,-8,0,0,0,0,0,0,0,0,28,23,23,25,24,0,17,14,112,103]} 1. d4 {[%emt 0:00:04]} Nf6 {[%emt 0:00:01]} 2. c4 {[%emt 0:00:03]} g6 {[%emt 0:00:01]} 3. Nc3 {[%emt 0:00:01]} d5 {[%emt 0:00:02]} 4. cxd5 {[%emt 0:00:10]} Nxd5 {[%emt 0:00:01]} 5. Bd2 {[%emt 0:00:01]} c5 {[%emt 0:00:21]} 6. dxc5 {[%emt 0:00:15] D85: Exchange Grünfeld: Unusual White 7th moves and lines with 7 Nf3.} Bg7 {[%emt 0:00:10]} 7. Rc1 {[%emt 0:00:02]} (7. Qb3 $14 Nxc3 8. Bxc3) 7... O-O $11 {[%emt 0:01:07]} 8. e4 {[%emt 0:01:06] [#] The position is equal.} Nf6 $146 {[%emt 0:03:10]} (8... Nxc3 $11 9. Bxc3 Qxd1+ 10. Kxd1 Bh6) ({Predecessor:} 8... Nb4 9. a3 Nd3+ 10. Bxd3 Qxd3 11. Qe2 Qd8 12. Nf3 Nc6 13. h3 b6 14. cxb6 axb6 {½-½ (25) Indjic,A (2618)-Chigaev,M (2588) Chess.com INT 2020}) 9. Be2 {[%emt 0:01:58]} Nc6 {[%emt 0:01:59]} 10. Nf3 {[%emt 0:00:10]} Qa5 {[%emt 0:01:47]} 11. Na4 {[%emt 0:02:30]} (11. Nb5 $16 Qd8 12. Qa4) 11... Qc7 {[%emt 0:00:14]} 12. Qc2 {[%emt 0:00:04]} Rd8 {[%emt 0:00:32]} 13. O-O {[%emt 0:00:20]} Bg4 {[%emt 0:01:36]} (13... Ng4 $5 {[%cal Rc6d4]} 14. g3 Nge5 $14) 14. Be3 {[%emt 0:00:58]} Bxf3 {[%emt 0:00:33]} 15. Bxf3 {[%emt 0:00:02]} Nd4 {[%emt 0:00:01]} 16. Bxd4 {[%emt 0:00:51]} Rxd4 {[%emt 0:00:01]} 17. Rfd1 {[%emt 0:00:01]} (17. e5 $5 {[%cal Re5f6]} Ng4 18. Bxg4 Rxg4 19. h3 $11) 17... Rad8 {[%emt 0:00:06]} 18. Rxd4 {[%emt 0:01:06]} Rxd4 {[%emt 0:00:01]} 19. Rd1 {[%emt 0:00:01]} Nd7 {[%emt 0:00:41]} 20. Rxd4 {[%emt 0:00:59]} Bxd4 {[%emt 0:00:00]} 21. b4 {[%emt 0:00:01]} a5 {[%emt 0:00:19]} 22. a3 {[%emt 0:00:28]} axb4 {[%emt 0:00:02]} 23. axb4 {[%emt 0:00:00]} Qe5 {[%emt 0:00:09]} 24. g3 {[%emt 0:00:13]} h5 {[%emt 0:00:04]} 25. Kg2 {[%emt 0:00:05]} h4 {[%emt 0:00:01]} 26. Qd3 {[%emt 0:00:30]} hxg3 {[%emt 0:00:02]} 27. hxg3 {[%emt 0:00:02]} Kf8 {[%emt 0:00:18]} (27... g5 $11 {keeps the balance.}) 28. Qb5 {[%emt 0:01:26][%csl LRb7,LRd7] Weighted Error Value: White=0.14 (very precise) /Black=0.22 (precise)} 1-0

[Event "5th Vera Menchik Memorial 2022"]
[Site "Prag"]
[Date "2022.06.05"]
[Round "7.9"]
[White "Bezdek, Tomas"]
[Black "Kulovana, Eva"]
[Result "0-1"]
[ECO "B10"]
[WhiteElo "1957"]
[BlackElo "2173"]
[Annotator "TA"]
[PlyCount "50"]
[EventDate "2022.06.05"]
[EventType "tourn"]
[EventCountry "CZE"]
[SourceTitle "playchess.com"]
[Source "ChessBase"]
[SourceQuality "1"]
[TimeControl "720+3"]

{[%evp 9,50,0,7,-36,12,0,18,24,33,4,21,22,27,28,96,89,74,54,53,60,60,61,56,22,26,16,38,19,33,31,25,25,66,50,95,37,60,60,68,29,62,-609,-622]} 1. e4 {[%emt 0:00:03][%cal Be2e4,Be4e5][%mdl 32]} c6 {[%emt 0:00:01][%cal Bc7c6,Bc6c5][%mdl 32]} 2. Ne2 {[%emt 0:00:04]} d5 {[%emt 0:00:02]} 3. e5 {[%emt 0:00:01]} e6 {[%emt 0:00:13]} 4. d4 {[%emt 0:00:39]} c5 {[%emt 0:00:08]} 5. c3 {[%emt 0:00:02]} Nc6 {[%emt 0:00:02]} 6. Be3 {[%emt 0:00:03] B10: Caro-Kann: 2 d3 and 2 c4.} Nge7 {[%emt 0:00:48]} (6... Qb6 $15) 7. Ng3 $11 {[%emt 0:00:13]} Qb6 {[%emt 0:02:48] [#] Hoping for ...cxd4.} 8. Qd2 {[%emt 0:00:20] The position is equal.} cxd4 {[%emt 0:00:32]} 9. cxd4 {[%emt 0:00:06] [#]} h5 $146 {[%emt 0:00:06]} ({Predecessor:} 9... Bd7 10. Nc3 Rc8 11. Be2 Na5 12. O-O Nc4 13. Bxc4 Rxc4 14. Rfd1 h5 15. h4 Kd8 {1-0 (51) Steadman,M (2263)-Watson,B (2270) Auckland 2010}) 10. h4 {[%emt 0:00:28]} g6 {[%emt 0:00:02]} 11. Nc3 {[%emt 0:00:15]} Nf5 {[%emt 0:00:12]} (11... Bg7 $11) 12. Nxf5 $16 {[%emt 0:00:13]} gxf5 {[%emt 0:00:01]} 13. a3 {[%emt 0:00:02]} f4 {[%emt 0:00:52]} 14. Bxf4 {[%emt 0:00:41] Rd1 is the strong threat.} Qxd4 {[%emt 0:00:22]} 15. Qxd4 {[%emt 0:02:10]} Nxd4 {[%emt 0:00:02]} 16. O-O-O {[%emt 0:00:02] Against Nc2} (16. Rd1 $5 {[%cal Rd1d4]} Nc6 17. Nb5 $14) 16... Nc6 {[%emt 0:00:23]} 17. Nb5 {[%emt 0:00:02] [#] And now Nc7+ would win.} Rb8 {[%emt 0:00:42]} 18. Rh3 {[%emt 0:00:56]} a6 {[%emt 0:00:14]} 19. Nd4 {[%emt 0:00:01]} (19. Nd6+ {looks sharper.} Bxd6 20. exd6 Kd7 21. Bh2) 19... Nxd4 {[%emt 0:00:19]} 20. Rxd4 {[%emt 0:00:08]} Bd7 {[%emt 0:00:02]} 21. Rc3 {[%emt 0:00:29]} Rc8 {[%emt 0:00:18]} 22. Rdd3 {[%emt 0:00:52]} (22. Rxc8+ $16 Bxc8 23. Rd3) 22... Bc5 {[%emt 0:01:01]} 23. Be3 $1 {[%emt 0:01:55]} Bxe3+ {[%emt 0:01:22]} 24. Rxe3 {[%emt 0:00:10]} Ke7 {[%emt 0:00:27] Threatens to win with ...d4.} 25. Be2 $2 {[%emt 0:00:45][%mdl 8192]} (25. Rg3 $14) 25... d4 $1 {[%emt 0:00:04][%csl LRc3,LRe3] Weighted Error Value: White=0.49/Black=0.16 (very precise)} 0-1

[Event "5th Vera Menchik Memorial 2022"]
[Site "Prag"]
[Date "2022.06.05"]
[Round "7.10"]
[White "Bures, Jaroslav"]
[Black "Minbayev, Bolatbek"]
[Result "1-0"]
[ECO "D36"]
[WhiteElo "2422"]
[BlackElo "2078"]
[Annotator "TA"]
[PlyCount "83"]
[EventDate "2022.06.05"]
[EventType "tourn"]
[EventCountry "CZE"]
[SourceTitle "playchess.com"]
[Source "ChessBase"]
[SourceQuality "1"]
[TimeControl "720+3"]

{[%evp 23,83,36,24,14,28,34,42,41,52,51,49,52,50,51,52,51,58,46,58,44,143,144,143,143,138,117,113,104,114,109,109,99,124,121,141,122,122,91,122,99,135,110,106,105,139,135,305,293,542,542,542,480,547,378,963,997,928,908,5492,4897,6582,5106]} 1. d4 {[%emt 0:00:01]} Nf6 {[%emt 0:00:05]} 2. c4 {[%emt 0:00:01]} e6 {[%emt 0:00:02]} 3. Nc3 {[%emt 0:00:02]} d5 {[%emt 0:00:01]} 4. cxd5 {[%emt 0:00:01]} exd5 {[%emt 0:00:03]} 5. Bg5 {[%emt 0:00:01]} c6 {[%emt 0:00:09]} 6. e3 {[%emt 0:00:02]} Be7 {[%emt 0:00:06]} 7. Bd3 {[%emt 0:00:02]} O-O {[%emt 0:00:20]} 8. Nge2 {[%emt 0:00:02]} Re8 {[%emt 0:00:44]} 9. Qc2 {[%emt 0:00:23]} h6 {[%emt 0:00:01]} 10. Bh4 {[%emt 0:00:04]} Nbd7 {[%emt 0:00:27]} 11. O-O {[%emt 0:00:04]} Ne4 {[%emt 0:01:28]} 12. Bxe7 {[%emt 0:01:26]} Qxe7 {[%emt 0:00:02]} 13. b4 {[%emt 0:00:48] D36: Queen's Gambit Declined: Exchange Variation: Main line (5 Bg5 c6 6 Qc2).} Nxc3 {[%emt 0:01:36]} (13... Ndf6 $5 {[%cal Re7b4]}) 14. Qxc3 {[%emt 0:00:02] [#]} a6 $146 {[%emt 0:00:16]} ({Predecessor:} 14... Nf6 15. b5 Bd7 16. bxc6 Bxc6 17. Nf4 Rec8 18. Qb3 b6 19. Be2 Bb7 20. Bf3 Qd7 {1-0 (51) Hilverda,A (2229)-Knapp,M (2024) Neustadt an der Weinstrasse 2012}) 15. a4 {[%emt 0:00:04] White is slightly better.} Nf6 {[%emt 0:00:20]} 16. b5 {[%emt 0:00:05]} axb5 {[%emt 0:00:09]} 17. axb5 {[%emt 0:00:01]} Bd7 {[%emt 0:00:03]} 18. bxc6 {[%emt 0:00:14]} bxc6 {[%emt 0:00:27]} 19. h3 {[%emt 0:00:10]} Rec8 {[%emt 0:00:15]} 20. Rfc1 {[%emt 0:00:18]} Rxa1 {[%emt 0:00:42]} 21. Qxa1 {[%emt 0:00:35]} c5 {[%emt 0:00:29] [#]} (21... Qf8 $14) 22. Qa3 $1 $16 {[%emt 0:00:12][%cal Rd4c5]} Be6 {[%emt 0:01:23]} 23. Rxc5 {[%emt 0:00:16]} Rxc5 {[%emt 0:00:37]} 24. dxc5 {[%emt 0:00:32][%cal Bd4c5,Bc5c6][%mdl 32] aiming for Qa8+.} Nd7 {[%emt 0:00:07]} 25. Qa8+ {[%emt 0:00:25]} Qf8 {[%emt 0:00:17]} 26. Qxf8+ {[%emt 0:00:02]} Kxf8 {[%emt 0:00:03][%mdl 4096] Endgame KBN-KBN} 27. c6 {[%emt 0:00:06]} Nb6 {[%emt 0:00:34]} 28. Nd4 {[%emt 0:01:18]} Ke7 {[%emt 0:00:08]} 29. Ba6 {[%emt 0:01:24] White is more active.} Kd6 {[%emt 0:00:16]} 30. Kf1 {[%emt 0:00:02]} g6 {[%emt 0:00:17]} 31. Ke2 {[%emt 0:00:04]} Bc8 {[%emt 0:00:13]} 32. Bb5 {[%emt 0:00:22]} Kc5 {[%emt 0:00:44]} 33. Kd3 {[%emt 0:00:14]} Be6 {[%emt 0:00:12]} 34. Ba6 {[%emt 0:01:32]} Kd6 {[%emt 0:00:00] [#] This costs Black the game.} (34... Na8 $16 35. Bb7 Nc7) 35. Kc3 $18 {[%emt 0:00:10]} Bc8 $2 {[%emt 0:00:13]} (35... Na4+ 36. Kb4 Nb2) 36. Bxc8 {[%emt 0:00:17]} Nxc8 {[%emt 0:00:01] KN-KN} 37. Kb4 {[%emt 0:00:01]} Nb6 {[%emt 0:00:31]} 38. f3 {[%emt 0:00:43]} f6 $2 {[%emt 0:00:05]} (38... Nc4 39. e4 f6) 39. Kb5 {[%emt 0:00:21] White is clearly winning.} Nc4 {[%emt 0:00:19]} 40. e4 {[%emt 0:00:08][%cal Be3e4,Be4d5][%mdl 32]} Ke5 {[%emt 0:00:00]} 41. Kc5 {[%emt 0:00:27]} g5 {[%emt 0:00:13]} 42. exd5 {[%emt 0:01:07] Weighted Error Value: White=0.13 (very precise) /Black=0.43} 1-0

[Event "5th Vera Menchik Memorial 2022"]
[Site "Prag"]
[Date "2022.06.05"]
[Round "7.11"]
[White "Varga, David"]
[Black "Holy, Filip"]
[Result "0-1"]
[ECO "B15"]
[WhiteElo "2323"]
[BlackElo "2066"]
[Annotator "TA"]
[PlyCount "63"]
[EventDate "2022.06.05"]
[EventType "tourn"]
[EventCountry "CZE"]
[SourceTitle "playchess.com"]
[Source "ChessBase"]
[SourceQuality "1"]
[TimeControl "720+3"]

{[%evp 10,63,30,0,22,8,32,7,19,16,11,0,0,0,5,0,0,0,0,0,0,-8,50,50,46,38,54,58,61,41,85,40,55,5,4,0,0,0,12,18,85,21,57,51,58,-10,-14,-13,93,103,121,20,20,13,14,-4]} 1. e4 {[%emt 0:00:02]} c6 {[%emt 0:00:00]} 2. d4 {[%emt 0:00:02]} d5 {[%emt 0:00:01]} 3. Nc3 {[%emt 0:00:01]} dxe4 {[%emt 0:00:02]} 4. Nxe4 {[%emt 0:00:01]} Nf6 {[%emt 0:00:01]} 5. Nxf6+ {[%emt 0:01:12]} exf6 {[%emt 0:00:03]} 6. Bf4 {[%emt 0:00:44]} Be7 {[%emt 0:00:02] B15: Caro-Kann: 3 Nc3: 3...g6 and 3...dxe4 4 Nxe4 Nf6 5 Nxf6+ exf6.} 7. Nf3 {[%emt 0:01:35]} Nd7 {[%emt 0:00:14]} 8. Be2 {[%emt 0:00:41] [#]} Nf8 $146 {[%emt 0:00:04]} ({Predecessor:} 8... O-O 9. O-O Re8 10. d5 cxd5 11. Qxd5 Ne5 12. Qxd8 Bxd8 13. Nd4 a6 14. c4 Bb6 {1-0 (41) Van der Sterren,P (2410)-Sahl,B Silkeborg 1980}) 9. O-O {[%emt 0:00:21]} Ng6 {[%emt 0:00:19]} 10. Bd2 {[%emt 0:00:52]} Bd6 {[%emt 0:00:21]} 11. Re1 {[%emt 0:00:02]} O-O {[%emt 0:00:02]} 12. Bf1 {[%emt 0:00:27]} Be6 {[%emt 0:00:46]} 13. c4 {[%emt 0:00:23]} Qd7 {[%emt 0:01:01]} 14. Bc3 {[%emt 0:00:10]} Rfd8 {[%emt 0:00:16]} 15. Nd2 {[%emt 0:00:25]} f5 {[%emt 0:00:38]} (15... b5 $11 16. a3 a5) 16. Nf3 $14 {[%emt 0:00:20]} f6 {[%emt 0:00:21] Prevents Ng5.} 17. Qc2 {[%emt 0:01:01]} Kh8 {[%emt 0:02:34]} 18. Rad1 {[%emt 0:00:08]} Bc7 {[%emt 0:01:08]} 19. b3 {[%emt 0:00:14]} Qd6 {[%emt 0:00:34][%cal Og6h4]} 20. g3 {[%emt 0:00:34] Inhibits Nh4.} f4 {[%emt 0:00:15]} 21. Bg2 {[%emt 0:00:05]} (21. Bd3 $1 $14) 21... Qd7 $11 {[%emt 0:00:16]} 22. Bb2 {[%emt 0:01:26]} Bf5 {[%emt 0:00:11]} 23. Qc3 {[%emt 0:00:10]} Rac8 {[%emt 0:00:14]} 24. d5 {[%emt 0:00:37][%cal Od5d6]} Bb6 {[%emt 0:01:28]} (24... c5 $11) 25. Nd4 {[%emt 0:01:29]} (25. d6 $16 {And now c5 would win.} c5 26. a4) 25... cxd5 {[%emt 0:00:17]} 26. Bxd5 {[%emt 0:00:06]} Bg4 {[%emt 0:00:20] [#] Threatens to win with ...fxg3.} 27. Rd2 {[%emt 0:00:04]} (27. Ne6 $1 $14 Bxd1 28. Nxd8 Rxd8 29. Rxd1) 27... Ne5 {[%emt 0:00:13] White should prevent ...Qe8.} 28. gxf4 {[%emt 0:00:06]} Qxd5 {[%emt 0:00:45]} 29. cxd5 $16 {[%emt 0:00:03]} Rxc3 {[%emt 0:00:03]} 30. Bxc3 {[%emt 0:00:07]} (30. fxe5 $16 Rcc8 31. Nc2) 30... Bxd4 $11 {[%emt 0:00:04][%mdl 64] [#] Remove Defender} 31. Rxd4 {[%emt 0:00:08]} Nf3+ {[%emt 0:01:03]} 32. Kf1 {[%mdl 32768] Weighted Error Value: White=0.22 (precise) /Black=0.23 (precise) . Sensor Board Error (Ke4/e5)?} 0-1